fUSD/lending_fUSD_20240923
["ID","MTS","AMOUNT","RATE_DAILY","PERIOD"]
[338978853,1727098232278,-235.35886021,0.00011782,2]
[338978854,1727098232290,-264.64113979,0.00011782,2]
[338978855,1727098232299,-168.52,0.00011786,2]
[338978856,1727098232310,-327.63,0.00011806,2]
[338978857,1727098232319,-151.16,0.00012088,2]
[338978858,1727098232329,-500.0,0.0001209,2]
[338978859,1727098232338,-700.0,0.000121,4]
[338978860,1727098232348,-1400.0,0.000122,4]
[338978861,1727098232357,-127.70618731,0.000122,2]
[338978862,1727098232371,-702.82381269,0.000122,2]
[338978863,1727098232382,-499.99,0.000122,2]
[338978864,1727098232392,-504.16618731,0.000123,4]
[338978865,1727098232418,-393.3952172,0.000123,4]
[338978866,1727098232429,-882.04846214,0.000123,4]
[338978867,1727098232441,-320.39013335,0.000123,4]
[338978868,1727098232450,-178.34,0.00012329,2]
[338978869,1727098232459,-300.0,0.00012336,2]
[338978870,1727098232469,-1818.89258453,0.00012337,2]
[338978871,1727098232481,-195.63529012,0.00012337,2]
[338978872,1727098232493,-804.35470988,0.00012337,2]
[338978874,1727098232502,-530.91922003,0.000124,4]
[338978875,1727098232521,-1287.8643057,0.000124,4]
[338978876,1727098232532,-714.46336982,0.000124,4]
[338978881,1727098238455,-266.75310445,0.000124,4]
[338978882,1727098238464,-60.37790878,0.00012445,2]
[338978883,1727098238476,-106.72209122,0.00012445,2]
[338978884,1727098238488,-199.722846,0.00012474,2]
[338978885,1727098238497,-150.0,0.000125,2]
[338978886,1727098238506,-1220.78618031,0.000125,4]
[338978887,1727098238517,-2279.21381969,0.000125,4]
[338978888,1727098238527,-700.0,0.000126,4]
[338978889,1727098238536,-150.0,0.00012643,2]
[338978890,1727098238545,-1870.78618031,0.00012644,2]
[338978891,1727098238557,-1595.48310882,0.00012644,2]
[338978892,1727098238568,-8928.78405659,0.00012644,2]
[338978893,1727098238585,-40308.94665428,0.00012644,2]
[338978894,1727098238594,-384.49511512,0.00012645,2]
[338978895,1727098238605,-700.0,0.000127,4]
[338978896,1727098238615,-157.22002002,0.000127,2]
[338978897,1727098238624,-150.0,0.00012726,2]
[338978898,1727098238634,-150.0,0.0001273,2]
[338978899,1727098238644,-150.0,0.00012731,2]
[338978900,1727098238654,-29103.867,0.00012732,2]
[338978901,1727098238664,-150.46,0.00012733,2]
[338978902,1727098238674,-150.0,0.00012733,2]
[338978903,1727098238683,-157.22001999,0.00012733,2]
[338978904,1727098238693,-150.0,0.00012734,2]
[338978905,1727098238703,-150.0,0.00012736,2]
[338978906,1727098238712,-150.0,0.0001274,2]
[338978907,1727098238722,-150.0,0.00012743,2]
[338978908,1727098238731,-150.0,0.00012746,2]
[338978909,1727098238740,-150.0,0.00012748,2]
[338978910,1727098238750,-150.0,0.00012748,2]
[338978911,1727098238760,-150.0,0.00012751,2]
[338978912,1727098238770,-150.0,0.00012752,2]
[338978913,1727098238779,-150.0,0.00012754,2]
[338978914,1727098238789,-150.0,0.00012755,2]
[338978915,1727098238798,-150.0,0.00012758,2]
[338978916,1727098238808,-150.0,0.0001276,2]
[338978917,1727098238817,-150.0,0.00012761,2]
[338978918,1727098238826,-150.0,0.00012765,2]
[338978919,1727098238835,-150.0,0.00012765,2]
[338978920,1727098238845,-157.22001999,0.00012767,2]
[338978921,1727098238855,-509.5205,0.00012776,2]
[338978922,1727098238864,-304.37988106,0.00012776,2]
[338978923,1727098238874,-150.0,0.00012777,2]
[338978924,1727098238884,-150.0,0.00012779,2]
[338978925,1727098238894,-138352.3626917,0.0001278,2]
[338978926,1727098238903,-150.0,0.00012783,2]
[338978927,1727098238912,-150.0,0.00012784,2]
[338978928,1727098238921,-150.0,0.00012788,2]
[338978929,1727098238931,-150.0,0.00012791,2]
[338978930,1727098238940,-150.0,0.00012796,2]
[338978931,1727098238951,-150.0,0.00012797,2]
[338978932,1727098238961,-1162.8236,0.00012798,2]
[338978933,1727098238971,-48288.74605141,0.00012799,2]
[338978934,1727098238981,-700.0,0.000128,4]
[338978935,1727098238990,-157.22001999,0.000128,2]
[338978936,1727098238999,-150.0,0.00012801,2]
[338978937,1727098239009,-150.0,0.00012802,2]
[338978938,1727098239018,-150.0,0.00012803,2]
[338978939,1727098239027,-7500.0,0.00012806,2]
[338978940,1727098239036,-150.0,0.00012816,2]
[338978941,1727098239046,-150.0,0.00012816,2]
[338978942,1727098239056,-150.0,0.00012818,2]
[338978943,1727098239065,-150.0,0.00012821,2]
[338978944,1727098239075,-150.0,0.00012822,2]
[338978946,1727098239084,-150.0,0.00012823,2]
[338978947,1727098239093,-150.0,0.00012827,2]
[338978948,1727098239103,-150.0,0.00012828,2]
[338978949,1727098239113,-150.0,0.00012829,2]
[338978950,1727098239122,-150.0,0.00012832,2]
[338978951,1727098239132,-157.22001999,0.00012833,2]
[338978952,1727098239141,-150.0,0.00012835,2]
[338978953,1727098239150,-150.0,0.00012835,2]
[338978954,1727098239160,-150.0,0.00012835,2]
[338978955,1727098239169,-150.0,0.00012839,2]
[338978956,1727098239179,-150.0,0.00012841,2]
[338978957,1727098239188,-150.0,0.00012844,2]
[338978958,1727098239197,-150.0,0.00012846,2]
[338978959,1727098239206,-150.0,0.00012848,2]
[338978960,1727098239215,-150.0,0.00012849,2]
[338978961,1727098239225,-150.0,0.00012852,2]
[338978962,1727098239235,-150.0,0.00012852,2]
[338978963,1727098239246,-150.0,0.00012857,2]
[338978964,1727098239255,-150.0,0.00012857,2]
[338978965,1727098239265,-150.0,0.00012858,2]
[338978966,1727098239275,-150.0,0.0001286,2]
[338978967,1727098239284,-157.22001999,0.00012867,2]
[338978968,1727098239293,-150.0,0.00012867,2]
[338978969,1727098239303,-150.0,0.00012868,2]
[338978970,1727098239317,-154.30329,0.0001287,2]
[338978971,1727098239327,-73259.62560061,0.0001287,2]
[338978972,1727098239336,-500.0,0.00012873,2]
[338978973,1727098239346,-160.38744844,0.00012873,2]
[338978974,1727098239356,-500.0,0.00012873,2]
[338978975,1727098239366,-150.0,0.00012873,2]
[338978976,1727098239375,-150.0,0.00012874,2]
[338978977,1727098239388,-150.0,0.00012875,2]
[338978978,1727098239398,-199.722846,0.00012876,2]
[338978979,1727098239407,-500.0,0.00012876,2]
[338978980,1727098239416,-500.0,0.00012876,2]
[338978981,1727098239426,-500.0,0.00012876,2]
[338978982,1727098239435,-500.0,0.00012876,2]
[338978983,1727098239445,-500.0,0.00012876,2]
[338978984,1727098239454,-500.0,0.00012876,2]
[338978985,1727098239464,-500.0,0.00012876,2]
[338978986,1727098239474,-500.0,0.00012876,2]
[338978987,1727098239485,-500.0,0.00012876,2]
[338978988,1727098239494,-500.0,0.00012876,2]
[338978989,1727098239503,-500.0,0.00012876,2]
[338978990,1727098239513,-500.0,0.00012876,2]
[338978991,1727098239522,-500.0,0.00012876,2]
[338978992,1727098239533,-500.0,0.00012876,2]
[338978993,1727098239542,-500.0,0.00012876,2]
[338978994,1727098239552,-500.0,0.00012876,2]
[338978995,1727098239561,-500.0,0.00012876,2]
[338978996,1727098239571,-500.0,0.00012876,2]
[338978997,1727098239581,-500.0,0.00012876,2]
[338978998,1727098239590,-500.0,0.00012876,2]
[338978999,1727098239599,-500.0,0.00012876,2]
[338979000,1727098239609,-500.0,0.00012876,2]
[338979001,1727098239619,-400.0,0.00012876,2]
[338979002,1727098239628,-500.0,0.00012876,2]
[338979003,1727098239637,-500.0,0.00012876,2]
[338979004,1727098239646,-500.0,0.00012876,2]
[338979005,1727098239656,-500.0,0.00012876,2]
[338979006,1727098239665,-500.0,0.00012876,2]
[338979007,1727098239675,-500.0,0.00012876,2]
[338979008,1727098239685,-163.21412396,0.00012876,2]
[338979009,1727098239694,-500.0,0.00012876,2]
[338979010,1727098239703,-420.01021832,0.00012876,2]
[338979011,1727098239713,-500.0,0.00012876,2]
[338979012,1727098239722,-500.0,0.00012876,2]
[338979013,1727098239732,-500.0,0.00012876,2]
[338979014,1727098239742,-500.0,0.00012876,2]
[338979015,1727098239751,-500.0,0.00012876,2]
[338979016,1727098239761,-500.0,0.00012876,2]
[338979017,1727098239771,-500.0,0.00012876,2]
[338979018,1727098239780,-844.16,0.00012876,2]
[338979019,1727098239790,-500.0,0.00012876,2]
[338979020,1727098239799,-500.0,0.00012876,2]
[338979021,1727098239809,-500.0,0.00012876,2]
[338979022,1727098239818,-2089.0,0.00012876,2]
[338979023,1727098239827,-2504.12,0.00012876,2]
[338979024,1727098239836,-500.0,0.00012876,2]
[338979025,1727098239846,-500.0,0.00012876,2]
[338979026,1727098239855,-500.0,0.00012876,2]
[338979027,1727098239864,-500.0,0.00012876,2]
[338979028,1727098239873,-500.0,0.00012876,2]
[338979029,1727098239882,-500.0,0.00012876,2]
[338979030,1727098239892,-500.0,0.00012876,2]
[338979031,1727098239901,-500.0,0.00012876,2]
[338979032,1727098239911,-500.0,0.00012876,2]
[338979033,1727098239920,-842.47,0.00012876,2]
[338979034,1727098239930,-500.0,0.00012876,2]
[338979035,1727098239939,-1396.19,0.00012876,2]
[338979036,1727098239949,-500.0,0.00012876,2]
[338979037,1727098239959,-500.0,0.00012876,2]
[338979038,1727098239969,-500.0,0.00012876,2]
[338979039,1727098239978,-506.0,0.00012876,2]
[338979040,1727098239995,-500.0,0.00012876,2]
[338979041,1727098240005,-500.0,0.00012876,2]
[338979042,1727098240015,-500.0,0.00012876,2]
[338979043,1727098240024,-500.0,0.00012876,2]
[338979044,1727098240034,-500.0,0.00012876,2]
[338979045,1727098240044,-500.0,0.00012876,2]
[338979046,1727098240054,-500.0,0.00012876,2]
[338979047,1727098240064,-500.0,0.00012876,2]
[338979048,1727098240073,-837.81,0.00012876,2]
[338979049,1727098240083,-500.0,0.00012876,2]
[338979050,1727098240093,-150.0,0.00012877,2]
[338979051,1727098240103,-150.0,0.00012878,2]
[338979052,1727098240114,-150.0,0.0001288,2]
[338979053,1727098240124,-150.0,0.0001288,2]
[338979054,1727098240133,-150.0,0.00012884,2]
[338979055,1727098240143,-150.0,0.00012887,2]
[338979056,1727098240154,-151.47,0.00012888,2]
[338979057,1727098240164,-151.47,0.00012889,2]
[338979058,1727098240173,-151.47,0.00012889,2]
[338979059,1727098240183,-151.47,0.00012889,2]
[338979060,1727098240193,-151.47,0.00012889,2]
[338979061,1727098240202,-773.74126147,0.00012889,2]
[338979062,1727098240211,-150.0,0.00012889,2]
[338979063,1727098240220,-150.0,0.00012889,2]
[338979064,1727098240232,-150.0,0.0001289,2]
[338979065,1727098240241,-323.72,0.00012894,2]
[338979066,1727098240251,-150.0,0.00012895,2]
[338979067,1727098240261,-150.0,0.00012896,2]
[338979068,1727098240271,-500.0,0.00012896,2]
[338979069,1727098240280,-200.0,0.00012896,2]
[338979070,1727098240290,-500.0,0.00012897,2]
[338979071,1727098240299,-587.94,0.00012897,2]
[338979072,1727098240313,-500.0,0.00012897,2]
[338979073,1727098240322,-500.0,0.00012897,2]
[338979074,1727098240332,-679.66,0.00012897,2]
[338979075,1727098240341,-566.3,0.00012897,2]
[338979076,1727098240352,-500.0,0.00012897,2]
[338979077,1727098240362,-15450.66,0.00012897,2]
[338979078,1727098240371,-500.0,0.00012897,2]
[338979079,1727098240380,-500.0,0.00012897,2]
[338979080,1727098240393,-842.47,0.00012897,2]
[338979081,1727098240402,-500.0,0.00012897,2]
[338979082,1727098240412,-1396.19,0.00012897,2]
[338979083,1727098240423,-500.0,0.00012897,2]
[338979084,1727098240433,-500.0,0.00012897,2]
[338979085,1727098240442,-500.0,0.00012897,2]
[338979086,1727098240452,-500.0,0.00012897,2]
[338979087,1727098240462,-500.0,0.00012897,2]
[338979088,1727098240471,-500.0,0.00012897,2]
[338979089,1727098240481,-516.51,0.00012897,2]
[338979090,1727098240491,-500.0,0.00012897,2]
[338979091,1727098240500,-500.0,0.00012897,2]
[338979092,1727098240510,-500.0,0.00012897,2]
[338979093,1727098240521,-500.0,0.00012897,2]
[338979094,1727098240530,-837.81,0.00012897,2]
[338979095,1727098240540,-500.0,0.00012897,2]
[338979096,1727098240549,-500.0,0.00012898,2]
[338979097,1727098240559,-500.0,0.00012898,2]
[338979098,1727098240568,-500.0,0.00012898,2]
[338979099,1727098240577,-500.0,0.00012898,2]
[338979101,1727098240587,-500.0,0.00012898,2]
[338979103,1727098240596,-500.0,0.00012898,2]
[338979105,1727098240605,-500.0,0.00012898,2]
[338979107,1727098240615,-500.0,0.00012898,2]
[338979109,1727098240624,-500.0,0.00012898,2]
[338979110,1727098240634,-500.0,0.00012898,2]
[338979111,1727098240643,-500.0,0.00012898,2]
[338979112,1727098240652,-500.0,0.00012898,2]
[338979113,1727098240662,-615.21,0.00012898,2]
[338979114,1727098240671,-150.94923608,0.00012898,2]
[338979115,1727098240681,-500.0,0.00012898,2]
[338979116,1727098240690,-500.0,0.00012898,2]
[338979117,1727098240700,-388.26669587,0.00012898,2]
[338979118,1727098240710,-525.28025164,0.00012898,2]
[338979119,1727098240719,-500.0,0.00012898,2]
[338979120,1727098240728,-500.0,0.00012898,2]
[338979121,1727098240739,-760.11,0.00012898,2]
[338979122,1727098240748,-500.0,0.00012898,2]
[338979123,1727098240757,-500.0,0.00012898,2]
[338979125,1727098240766,-500.0,0.00012898,2]
[338979126,1727098240776,-500.0,0.00012898,2]
[338979127,1727098240786,-869.38,0.00012898,2]
[338979128,1727098240795,-500.0,0.00012898,2]
[338979129,1727098240805,-500.0,0.00012898,2]
[338979130,1727098240815,-178.74207767,0.00012898,2]
[338979131,1727098240825,-500.0,0.00012898,2]
[338979132,1727098240834,-467.30324684,0.00012898,2]
[338979133,1727098240845,-271.45305249,0.00012898,2]
[338979134,1727098240854,-500.0,0.00012898,2]
[338979135,1727098240864,-500.0,0.00012898,2]
[338979136,1727098240873,-530.56,0.00012898,2]
[338979137,1727098240883,-769.93,0.00012898,2]
[338979138,1727098240892,-500.0,0.00012898,2]
[338979139,1727098240902,-500.0,0.00012898,2]
[338979140,1727098240911,-162.14826699,0.00012898,2]
[338979141,1727098240921,-500.0,0.00012898,2]
[338979142,1727098240930,-500.0,0.00012898,2]
[338979143,1727098240939,-150.0,0.00012898,2]
[338979144,1727098240949,-500.0,0.00012898,2]
[338979145,1727098240961,-500.0,0.00012898,2]
[338979146,1727098240971,-862.21,0.00012898,2]
[338979147,1727098240980,-500.0,0.00012898,2]
[338979148,1727098240990,-500.0,0.00012898,2]
[338979149,1727098240999,-500.0,0.00012898,2]
[338979150,1727098241008,-500.0,0.00012898,2]
[338979151,1727098241018,-500.0,0.00012898,2]
[338979152,1727098241028,-500.0,0.00012898,2]
[338979153,1727098241038,-637.56,0.00012898,2]
[338979154,1727098241047,-500.0,0.00012898,2]
[338979155,1727098241056,-500.0,0.00012898,2]
[338979156,1727098241066,-500.0,0.00012898,2]
[338979157,1727098241075,-500.0,0.00012898,2]
[338979158,1727098241085,-1198.53,0.00012898,2]
[338979159,1727098241094,-500.0,0.00012898,2]
[338979160,1727098241104,-167.81658542,0.00012898,2]
[338979161,1727098241113,-500.0,0.00012898,2]
[338979162,1727098241123,-500.0,0.00012898,2]
[338979163,1727098241132,-500.0,0.00012898,2]
[338979164,1727098241141,-535.11,0.00012898,2]
[338979165,1727098241151,-500.0,0.00012898,2]
[338979166,1727098241160,-500.0,0.00012898,2]
[338979167,1727098241169,-500.0,0.00012898,2]
[338979168,1727098241179,-500.0,0.00012898,2]
[338979169,1727098241190,-500.0,0.00012898,2]
[338979170,1727098241199,-500.0,0.00012898,2]
[338979171,1727098241209,-600.57991977,0.00012898,2]
[338979172,1727098241219,-500.0,0.00012898,2]
[338979173,1727098241228,-500.0,0.00012898,2]
[338979174,1727098241240,-500.0,0.00012898,2]
[338979175,1727098241249,-500.0,0.00012898,2]
[338979176,1727098241258,-752.81,0.00012898,2]
[338979177,1727098241268,-665.38,0.00012898,2]
[338979178,1727098241277,-705.99,0.00012898,2]
[338979179,1727098241287,-500.0,0.00012898,2]
[338979180,1727098241297,-500.0,0.00012898,2]
[338979181,1727098241308,-500.0,0.00012898,2]
[338979182,1727098241319,-238.20257273,0.00012898,2]
[338979183,1727098241328,-500.0,0.00012898,2]
[338979184,1727098241338,-639.61,0.00012898,2]
[338979185,1727098241347,-500.0,0.00012898,2]
[338979186,1727098241358,-500.0,0.00012898,2]
[338979187,1727098241367,-500.0,0.00012898,2]
[338979188,1727098241376,-479.80768041,0.00012898,2]
[338979189,1727098241388,-500.0,0.00012898,2]
[338979190,1727098241398,-500.0,0.00012898,2]
[338979191,1727098241407,-1632.15,0.00012898,2]
[338979192,1727098241417,-500.0,0.00012898,2]
[338979193,1727098241426,-500.0,0.00012898,2]
[338979194,1727098241435,-547.71,0.00012898,2]
[338979195,1727098241445,-692.06,0.00012898,2]
[338979196,1727098241454,-1452.04,0.00012898,2]
[338979197,1727098241464,-500.0,0.00012898,2]
[338979198,1727098241473,-500.0,0.00012898,2]
[338979199,1727098241483,-500.0,0.00012898,2]
[338979200,1727098241492,-500.0,0.00012898,2]
[338979201,1727098241502,-500.0,0.00012898,2]
[338979202,1727098241511,-1371.08,0.00012898,2]
[338979203,1727098241520,-500.0,0.00012898,2]
[338979204,1727098241529,-500.0,0.00012898,2]
[338979205,1727098241539,-500.0,0.00012898,2]
[338979206,1727098241548,-500.0,0.00012898,2]
[338979207,1727098241558,-2523.98,0.00012898,2]
[338979208,1727098241567,-2523.98,0.00012898,2]
[338979209,1727098241576,-3152.38,0.00012898,2]
[338979210,1727098241586,-3152.38,0.00012898,2]
[338979211,1727098241595,-500.0,0.00012898,2]
[338979212,1727098241604,-500.0,0.00012898,2]
[338979213,1727098241613,-500.0,0.00012898,2]
[338979214,1727098241623,-502.12,0.00012898,2]
[338979215,1727098241632,-502.12,0.00012898,2]
[338979216,1727098241641,-500.0,0.00012898,2]
[338979217,1727098241650,-500.0,0.00012898,2]
[338979218,1727098241659,-500.0,0.00012898,2]
[338979219,1727098241669,-500.0,0.00012898,2]
[338979220,1727098241678,-500.0,0.00012898,2]
[338979221,1727098241687,-500.0,0.00012898,2]
[338979222,1727098241697,-500.0,0.00012898,2]
[338979223,1727098241706,-2602.57,0.00012898,2]
[338979224,1727098241715,-500.0,0.00012898,2]
[338979225,1727098241724,-500.0,0.00012898,2]
[338979226,1727098241734,-500.0,0.00012898,2]
[338979227,1727098241743,-500.0,0.00012898,2]
[338979228,1727098241753,-500.0,0.00012898,2]
[338979229,1727098241765,-500.0,0.00012898,2]
[338979230,1727098241774,-500.0,0.00012898,2]
[338979231,1727098241784,-500.0,0.00012898,2]
[338979232,1727098241793,-500.0,0.00012898,2]
[338979233,1727098241802,-500.0,0.00012898,2]
[338979234,1727098241812,-587.94,0.00012898,2]
[338979235,1727098241821,-500.0,0.00012898,2]
[338979236,1727098241831,-500.0,0.00012898,2]
[338979237,1727098242018,-500.0,0.00012898,2]
[338979238,1727098242028,-500.0,0.00012898,2]
[338979239,1727098242038,-398.87333617,0.00012898,2]
[338979240,1727098242048,-500.0,0.00012898,2]
[338979241,1727098242059,-500.0,0.00012898,2]
[338979242,1727098242069,-500.0,0.00012898,2]
[338979243,1727098242080,-500.0,0.00012898,2]
[338979244,1727098242089,-500.0,0.00012898,2]
[338979245,1727098242099,-500.0,0.00012898,2]
[338979246,1727098242108,-500.0,0.00012898,2]
[338979247,1727098242118,-500.0,0.00012898,2]
[338979248,1727098242128,-1085.77,0.00012898,2]
[338979249,1727098242137,-1085.77,0.00012898,2]
[338979250,1727098242146,-500.0,0.00012898,2]
[338979251,1727098242156,-500.0,0.00012898,2]
[338979252,1727098242165,-500.0,0.00012898,2]
[338979253,1727098242175,-500.0,0.00012898,2]
[338979254,1727098242184,-500.0,0.00012898,2]
[338979255,1727098242194,-620.21,0.00012898,2]
[338979256,1727098242203,-500.0,0.00012898,2]
[338979257,1727098242212,-462.8,0.00012898,2]
[338979258,1727098242221,-500.0,0.00012898,2]
[338979259,1727098242230,-500.0,0.00012898,2]
[338979260,1727098242242,-679.66,0.00012898,2]
[338979261,1727098242251,-500.0,0.00012898,2]
[338979262,1727098242260,-1231.59,0.00012898,2]
[338979263,1727098242271,-537.71758906,0.00012898,2]
[338979264,1727098242280,-500.0,0.00012898,2]
[338979265,1727098242289,-500.0,0.00012898,2]
[338979266,1727098242298,-566.17,0.00012898,2]
[338979267,1727098242309,-15450.66,0.00012898,2]
[338979268,1727098242320,-1118.24,0.00012898,2]
[338979269,1727098242329,-769.16,0.00012898,2]
[338979270,1727098242339,-918.44,0.00012898,2]
[338979271,1727098242348,-918.44,0.00012898,2]
[338979272,1727098242358,-373.01194362,0.00012898,2]
[338979273,1727098242367,-500.0,0.00012898,2]
[338979274,1727098242376,-500.0,0.00012898,2]
[338979275,1727098242388,-500.0,0.00012898,2]
[338979276,1727098242398,-978.49,0.00012898,2]
[338979277,1727098242407,-500.0,0.00012898,2]
[338979278,1727098242417,-608.21,0.00012898,2]
[338979279,1727098242427,-500.0,0.00012898,2]
[338979280,1727098242438,-500.0,0.00012898,2]
[338979281,1727098242448,-3180.38,0.00012898,2]
[338979282,1727098242457,-3180.38,0.00012898,2]
[338979283,1727098242466,-500.0,0.00012898,2]
[338979284,1727098242475,-500.0,0.00012898,2]
[338979285,1727098242486,-842.47,0.00012898,2]
[338979286,1727098242495,-500.0,0.00012898,2]
[338979287,1727098242504,-500.0,0.00012898,2]
[338979288,1727098242513,-312.79576756,0.00012898,2]
[338979289,1727098242521,-500.0,0.00012898,2]
[338979290,1727098242530,-500.0,0.00012898,2]
[338979291,1727098242539,-1739.25,0.00012898,2]
[338979292,1727098242548,-500.0,0.00012898,2]
[338979293,1727098242558,-1396.19,0.00012898,2]
[338979294,1727098242567,-500.0,0.00012898,2]
[338979295,1727098242575,-500.0,0.00012898,2]
[338979296,1727098242585,-576.01,0.00012898,2]
[338979297,1727098242595,-1783.69,0.00012898,2]
[338979298,1727098242604,-500.0,0.00012898,2]
[338979299,1727098242614,-500.0,0.00012898,2]
[338979300,1727098242623,-500.0,0.00012898,2]
[338979301,1727098242632,-500.0,0.00012898,2]
[338979302,1727098242641,-500.0,0.00012898,2]
[338979303,1727098242651,-500.0,0.00012898,2]
[338979304,1727098242660,-156.05,0.00012898,2]
[338979305,1727098242669,-500.0,0.00012898,2]
[338979306,1727098242679,-500.0,0.00012898,2]
[338979307,1727098242688,-500.0,0.00012898,2]
[338979308,1727098242698,-500.0,0.00012898,2]
[338979309,1727098242707,-640.39,0.00012898,2]
[338979310,1727098242716,-520.81246956,0.00012898,2]
[338979311,1727098242726,-500.0,0.00012898,2]
[338979312,1727098242737,-500.0,0.00012898,2]
[338979313,1727098242746,-500.0,0.00012898,2]
[338979314,1727098242755,-837.81,0.00012898,2]
[338979315,1727098242765,-500.0,0.00012898,2]
[338979316,1727098242774,-500.0,0.00012898,2]
[338979317,1727098242783,-500.0,0.00012898,2]
[338979318,1727098242792,-2183.253,0.00012899,2]
[338979319,1727098242801,-245000.0,0.00012899,2]
[338979320,1727098242810,-500.0,0.00012899,2]
[338979321,1727098242818,-176.8,0.00012899,2]
[338979322,1727098242827,-500.0,0.00012899,2]
[338979323,1727098242837,-500.0,0.00012899,2]
[338979324,1727098242845,-150.35374544,0.00012899,2]
[338979325,1727098242855,-500.0,0.00012899,2]
[338979326,1727098242864,-500.0,0.00012899,2]
[338979327,1727098242873,-500.0,0.00012899,2]
[338979328,1727098242882,-500.0,0.00012899,2]
[338979329,1727098242892,-760.11,0.00012899,2]
[338979330,1727098242902,-500.0,0.00012899,2]
[338979331,1727098242912,-869.38,0.00012899,2]
[338979332,1727098242920,-500.0,0.00012899,2]
[338979333,1727098242930,-500.0,0.00012899,2]
[338979334,1727098242941,-500.0,0.00012899,2]
[338979335,1727098242952,-500.0,0.00012899,2]
[338979336,1727098242963,-434.77,0.00012899,2]
[338979337,1727098242972,-769.93,0.00012899,2]
[338979338,1727098242981,-500.0,0.00012899,2]
[338979339,1727098242993,-500.0,0.00012899,2]
[338979340,1727098243002,-500.0,0.00012899,2]
[338979341,1727098243011,-500.0,0.00012899,2]
[338979342,1727098243021,-500.0,0.00012899,2]
[338979343,1727098243029,-500.0,0.00012899,2]
[338979344,1727098243039,-862.21,0.00012899,2]
[338979345,1727098243048,-500.0,0.00012899,2]
[338979346,1727098243057,-500.0,0.00012899,2]
[338979347,1727098243066,-500.0,0.00012899,2]
[338979348,1727098243078,-500.0,0.00012899,2]
[338979349,1727098243090,-500.0,0.00012899,2]
[338979350,1727098243102,-500.0,0.00012899,2]
[338979351,1727098243112,-637.56,0.00012899,2]
[338979352,1727098243122,-500.0,0.00012899,2]
[338979353,1727098243131,-500.0,0.00012899,2]
[338979354,1727098243141,-500.0,0.00012899,2]
[338979355,1727098243151,-500.0,0.00012899,2]
[338979356,1727098243160,-1198.53,0.00012899,2]
[338979357,1727098243169,-500.0,0.00012899,2]
[338979358,1727098243178,-500.0,0.00012899,2]
[338979360,1727098243188,-500.0,0.00012899,2]
[338979362,1727098243197,-535.11,0.00012899,2]
[338979364,1727098243207,-590.76942472,0.00012899,2]
[338979365,1727098243215,-500.0,0.00012899,2]
[338979366,1727098243224,-476.4,0.00012899,2]
[338979367,1727098243237,-500.0,0.00012899,2]